bitfinex-derivatives/quotes_SOLF0:USTF0_20250830
["timestamp","ask_amount","ask_price","bid_price","bid_amount"]
[1756560862855,3.18706124,198.68,198.58,7.55]
[1756560868462,5.57394486,198.81,198.6,3.18706124]
[1756560868669,3.18706124,198.73,198.63,3.18706124]
[1756560868865,3.18706124,198.73,198.64,7.55]
[1756560870166,3.18706124,198.73,198.64,3.18706124]
[1756560870362,3.18706124,198.76,198.65,7.55]
[1756560870667,0.39,198.78,198.67,7.55]
[1756560870860,3.18706124,198.77,198.67,7.55]
[1756560871759,3.18706124,198.77,198.7,7.55]
[1756560872262,0.39,198.82,198.7,7.55]
[1756560872467,3.18706124,198.81,198.7,7.55]
[1756560873365,0.39,198.8,198.7,7.55]
[1756560873558,3.18706124,198.78,198.7,7.55]
[1756560874567,0.39,198.8,198.7,7.55]
[1756560875163,3.18706124,198.78,198.7,7.55]
[1756560878163,3.18706124,198.78,198.71,8.08]
[1756560878667,43.94,198.82,198.71,8.08]
[1756560878868,47.12706124,198.82,198.71,8.08]
[1756560879070,3.18706124,198.82,198.71,8.08]
[1756560879460,338.1,198.83,198.71,8.08]
[1756560879770,341.28706124,198.83,198.71,8.08]
[1756560881265,341.28706124,198.83,198.73,3.18706124]
[1756560881468,341.28706124,198.83,198.74,8.08]
[1756560882268,3.18706124,198.83,198.74,11.26706124]
[1756560882671,3.18706124,198.83,198.74,8.08]
[1756560884375,3.58706124,198.84,198.74,8.08]
[1756560885479,3.58706124,198.84,198.69,24.64]
[1756560885480,126.2,198.86,198.77,8.08]
[1756560885774,3.18706124,198.86,198.77,8.08]
[1756560886375,0.4,198.85,198.77,8.08]
[1756560886780,0.4,198.89,198.77,8.08]
[1756560886980,0.4,198.89,198.8,8.08]
[1756560887481,3.18706124,198.87,198.8,8.08]
[1756560888175,3.18706124,198.88,198.8,8.08]
[1756560893187,0.4,198.89,198.8,8.08]
[1756560893389,3.18706124,198.91,198.82,8.08]
[1756560893588,0.4,198.93,198.82,8.08]
[1756560894584,0.4,198.93,198.82,11.26706124]
[1756560894785,0.4,198.93,198.83,8.08]
[1756560899990,126.5,198.93,198.83,8.08]
[1756560907003,0.4,198.9,198.72,8.08]
[1756560907301,3.18706124,198.91,198.79,8.15]
[1756560907302,0.4,198.88,198.79,8.15]
[1756560909302,0.4,198.88,198.68,5.64973472]
[1756560909303,3.18706124,198.85,198.69,8.15]
[1756560909492,3.18706124,198.85,198.74,8.15]
[1756560909493,0.4,198.84,198.74,8.15]
[1756560909803,3.58706124,198.84,198.74,8.15]
[1756560910798,0.4,198.83,198.74,8.15]
[1756560911200,0.4,198.8,198.74,8.15]
[1756560913400,3.18706124,198.78,198.7,8.15]
[1756560913600,0.4,198.77,198.7,8.15]
[1756560916309,3.18706124,198.81,198.7,8.15]
[1756560916498,3.18706124,198.82,198.7,8.15]
[1756560916699,3.18706124,198.82,198.72,3.18706124]
[1756560917010,3.18706124,198.82,198.73,8.15]
[1756560919499,3.58706124,198.83,198.73,8.15]
[1756560922513,0.4,198.83,198.73,8.15]
[1756560923606,3.18706124,198.82,198.73,8.15]
[1756560926814,3.18706124,198.85,198.76,3.18706124]
[1756560927012,3.18706124,198.85,198.77,8.15]
[1756560927213,0.4,198.87,198.77,8.15]
[1756560927411,3.55997314,198.86,198.77,8.15]
[1756560927612,3.18706124,198.88,198.79,3.18706124]
[1756560927813,3.18706124,198.88,198.8,8.15]
[1756560931019,3.58706124,198.91,198.8,8.15]
[1756560932118,3.58706124,198.91,198.82,3.18706124]
[1756560932317,3.58706124,198.91,198.83,8.15]
[1756560932713,338.58,198.95,198.83,8.15]
[1756560932916,3.56046432,198.94,198.83,8.15]
[1756560933119,341.76706124,198.95,198.86,8.15]
[1756560933315,3.56072808,198.94,198.86,8.15]
[1756560933511,341.76706124,198.95,198.86,8.15]
[1756560933813,3.55989891,198.94,198.86,8.15]
[1756560934121,341.76706124,198.95,198.86,8.15]
[1756560934319,338.58,198.95,198.86,8.15]
[1756560936216,338.58,198.95,198.82,3.18706124]
[1756560936217,0.4,198.92,198.82,3.18706124]
[1756560936421,3.18706124,198.9,198.82,8.15]
[1756560936622,3.58706124,198.9,198.82,8.15]
[1756560941628,3.18706124,198.93,198.82,11.33706124]
[1756560941829,0.41,198.92,198.83,8.06]
[1756560946138,0.41,198.89,198.83,8.06]
[1756560946729,3.18706124,198.9,198.83,8.06]
[1756560947736,0.41,198.92,198.83,8.06]
[1756560947941,3.18706124,198.91,198.83,8.06]
[1756560948931,338.18,198.95,198.83,8.06]
[1756560948932,129.06706124,198.94,198.83,8.06]
[1756560949132,341.77706124,198.95,198.83,8.06]
[1756560949334,3.54943209,198.94,198.83,8.06]
[1756560949634,341.77706124,198.95,198.83,8.06]
[1756560949834,341.77706124,198.95,198.85,8.06]
[1756560951643,0.41,198.94,198.85,8.06]
[1756560956837,3.18706124,198.92,198.85,8.06]
[1756560961046,0.41,198.91,198.85,8.06]
[1756560961250,3.18706124,198.89,198.8,8.06]
[1756560961445,339.4652295,198.95,198.8,8.06]
[1756560961652,3.18706124,198.92,198.83,8.06]
[1756560962956,3.59706124,198.95,198.86,8.06]
[1756560963153,27.66706124,198.98,198.86,8.06]
[1756560963754,63.51,198.99,198.89,8.06]
[1756560964554,63.51,198.99,198.89,11.24706124]
[1756560964756,63.51,198.99,198.9,8.06]
[1756560965853,3.18706124,199.01,198.9,8.06]
[1756560966053,3.5529651,199.0,198.9,8.06]
[1756560966255,3.18706124,199.01,198.9,8.06]
[1756560966557,3.55270448,199.0,198.9,8.06]
[1756560966754,3.18706124,199.01,198.9,8.06]
[1756560966955,3.55270448,199.0,198.9,8.06]
[1756560967250,3.18706124,199.01,198.9,11.24706124]
[1756560967557,3.18706124,199.01,198.91,7.69]
[1756560970252,0.38,198.97,198.91,7.69]
[1756560970657,0.38,198.94,198.87,7.69]
[1756560974261,3.55578556,198.93,198.87,7.69]
[1756560974455,0.38,198.94,198.87,7.69]
[1756560974659,3.18706124,198.92,198.83,7.69]
[1756560974955,3.18706124,198.89,198.83,7.69]
[1756560975354,0.38,198.88,198.83,7.69]
[1756560975555,0.38,198.88,198.78,7.69]
[1756560976360,3.18706124,198.86,198.78,7.69]
[1756560977557,3.56706124,198.86,198.78,7.69]
[1756560977759,0.38,198.82,198.74,7.69]
[1756560978461,3.18706124,198.8,198.74,7.69]
[1756560978662,0.38,198.79,198.7,7.69]
[1756560978857,3.18706124,198.77,198.7,7.69]
[1756560979060,0.38,198.79,198.7,7.69]
[1756560979261,3.18706124,198.76,198.7,7.69]
[1756560979954,3.56706124,198.79,198.7,7.69]
[1756560980459,3.18706124,198.79,198.7,7.69]
[1756560980964,0.39,198.87,198.72,7.69]
[1756560981167,3.18706124,198.84,198.74,3.18706124]
[1756560981370,3.18706124,198.84,198.75,7.69]
[1756560984267,3.57706124,198.84,198.75,7.69]
[1756560984665,0.39,198.84,198.75,7.69]
[1756560985465,3.18706124,198.82,198.75,7.69]
[1756560986067,0.39,198.84,198.75,7.69]
[1756560990464,0.39,198.81,198.75,7.69]
[1756560992373,3.18706124,198.82,198.75,7.69]
[1756560992574,3.18706124,198.83,198.75,7.69]
[1756560992977,0.39,198.82,198.75,7.69]
[1756560993177,0.39,198.79,198.75,7.69]
[1756560993865,0.39,198.79,198.67,10.87706124]
[1756560994064,0.39,198.79,198.68,7.69]
[1756560995172,3.18706124,198.77,198.68,7.69]
[1756560996074,3.18706124,198.74,198.68,7.69]
[1756560999476,3.57706124,198.74,198.68,7.69]
[1756560999878,3.57706124,198.74,198.62,3.18706124]
[1756561000178,3.57706124,198.74,198.63,8.03]
[1756561002083,0.39,198.74,198.63,8.03]
[1756561002283,3.18706124,198.72,198.63,8.03]
[1756561004385,3.18706124,198.77,198.66,8.03]
[1756561004778,3.18706124,198.74,198.66,8.03]
[1756561005687,0.39,198.73,198.66,8.03]
[1756561005981,3.18706124,198.71,198.66,8.03]
[1756561006179,0.39,198.7,198.66,8.03]
[1756561006883,0.39,198.7,198.61,385.16]
[1756561007082,3.18706124,198.71,198.62,8.03]
[1756561011578,0.39,198.72,198.62,8.03]
[1756561011784,3.57706124,198.72,198.62,8.03]
[1756561012290,3.18706124,198.72,198.64,8.03]
[1756561015191,3.18706124,198.75,198.64,8.03]
[1756561016982,3.18706124,198.75,198.66,3.18706124]
[1756561017282,3.18706124,198.75,198.67,8.03]
[1756561020593,0.39,198.82,198.72,3.18706124]
[1756561020896,3.5504457,198.81,198.73,8.03]
[1756561021194,0.39,198.82,198.73,8.03]
[1756561021394,3.55123398,198.81,198.73,8.03]
[1756561021592,0.39,198.82,198.73,8.03]
[1756561022195,3.55253125,198.81,198.73,8.03]
[1756561022397,0.39,198.82,198.73,8.03]
[1756561022592,3.55253174,198.81,198.73,8.03]
[1756561022897,0.39,198.82,198.73,8.03]
[1756561023398,3.55262917,198.81,198.73,8.03]
[1756561023801,0.39,198.82,198.67,5.64973472]
[1756561023802,0.39,198.79,198.67,11.21706124]
[1756561023999,3.57706124,198.77,198.67,11.21706124]
[1756561025798,3.57706124,198.77,198.67,8.03]
[1756561026001,3.57706124,198.74,198.67,8.03]
[1756561026496,3.18706124,198.76,198.67,8.03]
[1756561026898,3.57706124,198.76,198.67,8.03]
[1756561027702,7.08,198.78,198.67,8.03]
[1756561027703,3.59706124,198.73,198.67,8.03]
[1756561029698,3.18706124,198.76,198.67,8.03]
[1756561031700,0.41,198.82,198.67,8.03]
[1756561031906,0.41,198.82,198.73,7.69]
[1756561032205,3.55229957,198.81,198.73,7.69]
[1756561032406,0.41,198.82,198.73,7.69]
[1756561037008,3.18706124,198.84,198.75,3.18706124]
[1756561037208,3.55614578,198.83,198.76,7.69]
[1756561037510,3.55614578,198.82,198.76,7.69]
[1756561037808,3.18706124,198.84,198.76,7.69]
[1756561038009,3.55663056,198.83,198.76,7.69]
[1756561038209,3.18706124,198.84,198.76,7.69]
[1756561038409,3.55681549,198.83,198.76,7.69]
[1756561038604,3.18706124,198.84,198.76,7.69]
[1756561038905,3.96779531,198.83,198.72,7.69]
[1756561039116,0.41,198.8,198.72,7.69]
[1756561040205,3.56083573,198.79,198.72,7.69]
[1756561040401,0.41,198.8,198.72,7.69]
[1756561040806,3.5609823,198.79,198.72,7.69]
[1756561041105,0.41,198.8,198.72,7.69]
[1756561042511,3.56112437,198.79,198.72,7.69]
[1756561042715,3.59706124,198.8,198.72,7.69]
[1756561043011,3.56040906,198.79,198.72,7.69]
[1756561043213,3.18706124,198.8,198.72,7.69]
[1756561044208,3.18706124,198.88,198.77,7.69]
[1756561044412,3.56066267,198.87,198.77,7.69]
[1756561044611,3.56066267,198.86,198.77,7.69]
[1756561044807,3.56133226,198.85,198.77,7.69]
[1756561045116,3.18706124,198.88,198.77,7.69]
[1756561045305,3.56035005,198.87,198.77,7.69]
[1756561045508,3.56035005,198.86,198.77,7.69]
[1756561045714,3.18706124,198.88,198.77,7.69]
[1756561045909,3.56033009,198.87,198.77,7.69]
[1756561046111,3.56033009,198.86,198.77,3.18706124]
[1756561046312,3.18706124,198.88,198.78,7.69]
[1756561046617,3.55923284,198.87,198.78,7.69]
[1756561046814,3.55923284,198.86,198.78,7.69]
[1756561047016,3.18706124,198.88,198.78,7.69]
[1756561047315,3.55923284,198.87,198.78,7.69]
[1756561047613,3.55923284,198.86,198.78,7.69]
[1756561047815,3.18706124,198.88,198.78,7.69]
[1756561048017,3.55808337,198.87,198.78,7.69]
[1756561048214,3.95808337,198.86,198.78,7.69]
[1756561048517,3.55745246,198.85,198.78,7.69]
[1756561048717,0.4,198.86,198.78,7.69]
[1756561048917,3.5575978,198.85,198.78,7.69]
[1756561049121,0.4,198.86,198.78,7.69]
[1756561049320,3.5572372,198.85,198.78,7.69]
[1756561049520,0.4,198.86,198.78,7.69]
[1756561049720,3.55715422,198.85,198.78,7.69]
[1756561049921,0.4,198.86,198.78,7.69]
[1756561050121,3.55715422,198.85,198.78,7.69]
[1756561050317,0.4,198.86,198.78,7.69]
[1756561050519,3.55677958,198.85,198.78,7.69]
[1756561050722,0.4,198.86,198.78,7.69]
[1756561050919,3.55669538,198.85,198.78,7.69]
[1756561051222,0.4,198.86,198.78,7.69]
[1756561051522,3.55662759,198.85,198.78,7.69]
[1756561051719,0.4,198.86,198.78,7.69]
[1756561052020,3.18706124,198.88,198.7,15.90706124]
[1756561052021,3.18706124,198.88,198.79,3.18706124]
[1756561052217,3.55708706,198.87,198.8,7.69]
[1756561052425,0.4,198.9,198.8,7.69]
[1756561052623,3.55750918,198.89,198.8,7.69]
[1756561052821,0.4,198.9,198.8,7.69]
[1756561053012,3.18706124,198.88,198.8,7.69]
[1756561053216,3.5572277,198.87,198.8,7.69]
[1756561053514,3.58706124,198.88,198.8,7.69]
[1756561055215,3.18706124,198.85,198.75,7.69]
[1756561058125,3.55739912,198.84,198.75,7.69]
[1756561058324,3.18706124,198.85,198.75,7.69]
[1756561058520,3.18706124,198.83,198.75,7.69]
[1756561061126,3.57706124,198.84,198.75,7.69]
[1756561061523,0.39,198.88,198.76,7.42]
[1756561061722,3.5600632,198.87,198.78,3.18706124]
[1756561061918,3.18706124,198.9,198.78,3.18706124]
[1756561061919,3.57706124,198.9,198.79,7.42]
[1756561062222,3.56012918,198.89,198.79,7.42]
[1756561062420,3.56012918,198.88,198.79,7.42]
[1756561062620,3.56012918,198.87,198.79,7.42]
[1756561062830,3.18706124,198.87,198.79,7.42]
[1756561063023,3.55973612,198.86,198.79,7.42]
[1756561063328,3.57706124,198.84,198.79,7.42]
[1756561063930,0.39,198.83,198.79,7.42]
[1756561065024,0.39,198.89,198.74,7.42]
[1756561065221,3.18706124,198.84,198.74,7.42]
[1756561065633,3.18706124,198.84,198.76,3.18706124]
[1756561065932,3.18706124,198.84,198.77,7.42]
[1756561067632,0.39,198.86,198.77,7.42]
[1756561067833,3.18706124,198.84,198.77,7.42]
[1756561073240,3.18706124,198.87,198.77,7.42]
[1756561073442,3.57038327,198.86,198.77,7.42]
[1756561073739,3.57038327,198.85,198.77,7.42]
[1756561074039,3.18706124,198.87,198.77,7.42]
[1756561074234,3.57038025,198.86,198.77,7.42]
[1756561074435,3.57038025,198.85,198.77,7.42]
[1756561074631,3.18706124,198.87,198.77,7.42]
[1756561074829,3.57208359,198.86,198.77,7.42]
[1756561075034,3.57208359,198.85,198.77,7.42]
[1756561075233,3.18706124,198.87,198.77,7.42]
[1756561075439,3.57303832,198.86,198.77,7.42]
[1756561075638,3.57303832,198.85,198.77,7.42]
[1756561075838,3.18706124,198.87,198.77,7.42]
[1756561076038,3.57303832,198.86,198.77,7.42]
[1756561076232,3.57303832,198.85,198.77,7.42]
[1756561076532,3.18706124,198.87,198.77,7.42]
[1756561076735,3.57371962,198.86,198.77,7.42]
[1756561076936,3.57371962,198.85,198.77,7.42]
[1756561077143,3.18706124,198.87,198.77,7.42]
[1756561077342,3.5738199,198.86,198.77,7.42]
[1756561077640,3.5738199,198.85,198.77,7.42]
[1756561077841,3.18706124,198.87,198.77,7.42]
[1756561078046,3.57284914,198.86,198.77,7.42]
[1756561078337,3.57284914,198.85,198.77,7.42]
[1756561078542,3.18706124,198.87,198.77,7.42]
[1756561078733,3.5729009,198.86,198.77,7.42]
[1756561078932,3.5729009,198.85,198.77,7.42]
[1756561079134,3.18706124,198.87,198.77,7.42]
[1756561079342,3.57279108,198.86,198.77,7.42]
[1756561079543,3.57279108,198.85,198.77,7.42]
[1756561079747,3.18706124,198.87,198.77,7.42]
[1756561080047,3.57288201,198.86,198.77,7.42]
[1756561080349,3.57288201,198.85,198.77,7.42]
[1756561080537,3.18706124,198.87,198.77,7.42]
[1756561080738,3.57293815,198.86,198.77,7.42]
[1756561080943,3.57293815,198.85,198.77,7.42]
[1756561081243,117.39702663,198.94,198.77,7.42]
[1756561081244,3.57706124,198.92,198.8,7.42]
[1756561081542,3.57307886,198.91,198.8,7.42]
[1756561081736,3.57307886,198.9,198.8,7.42]
[1756561081934,3.57706124,198.92,198.81,7.42]
[1756561082139,3.57328404,198.91,198.81,7.42]
[1756561082439,3.57186918,198.9,198.81,7.42]
[1756561082646,3.18706124,198.92,198.81,7.42]
[1756561082845,3.57195759,198.91,198.81,7.42]
[1756561083140,3.18706124,198.92,198.81,7.42]
[1756561083443,3.57080486,198.91,198.81,7.42]
[1756561083642,3.57064081,198.9,198.81,7.42]
[1756561083941,3.18706124,198.92,198.81,7.42]
[1756561084144,3.57064265,198.91,198.81,7.42]
[1756561084335,3.57064265,198.9,198.81,7.42]
[1756561084542,0.39,198.88,198.81,7.42]
[1756561084745,0.39,198.85,198.77,7.42]
[1756561088244,3.57264378,198.84,198.77,7.42]
[1756561088441,0.39,198.85,198.77,7.42]
[1756561088646,3.5728197,198.84,198.77,7.42]
[1756561088846,0.39,198.85,198.77,7.42]
[1756561089042,3.57349847,198.84,198.77,7.42]
[1756561089248,0.39,198.85,198.77,7.42]
[1756561089445,3.57381159,198.84,198.77,7.42]
[1756561089649,0.39,198.85,198.77,7.42]
[1756561089848,3.57381159,198.84,198.77,7.42]
[1756561090050,0.39,198.85,198.77,7.42]
[1756561090246,3.57393141,198.84,198.77,7.42]
[1756561090448,3.18706124,198.86,198.77,7.42]
[1756561090650,3.5740129,198.85,198.77,7.42]
[1756561090849,0.4,198.88,198.77,7.42]
[1756561091043,6.76075529,198.87,198.77,7.42]
[1756561091249,3.57369405,198.86,198.77,7.42]
[1756561091552,3.57327936,198.85,198.77,7.42]
[1756561091757,3.18706124,198.87,198.77,7.42]
[1756561091959,3.57331389,198.86,198.77,7.42]
[1756561092165,0.4,198.88,198.77,13.06973472]
[1756561092459,3.57348951,198.87,198.8,8.12]
[1756561092759,3.58706124,198.92,198.8,8.12]
[1756561092963,3.57374017,198.91,198.82,3.18706124]
[1756561093160,3.57374017,198.9,198.83,8.12]
[1756561093356,3.58706124,198.92,198.83,8.12]
[1756561093557,3.5729432,198.91,198.83,8.12]
[1756561093750,3.5729432,198.9,198.83,8.12]
[1756561093955,3.58706124,198.92,198.83,8.12]
[1756561094157,3.57338349,198.91,198.83,8.12]
[1756561094356,3.57338349,198.9,198.83,8.12]
[1756561094558,3.58706124,198.92,198.83,8.12]
[1756561094758,3.58706124,198.89,198.83,8.12]
[1756561095059,3.18706124,198.89,198.83,8.12]
[1756561095461,3.18706124,198.92,198.83,8.12]
[1756561095661,3.57296063,198.91,198.83,8.12]
[1756561095860,3.57296063,198.9,198.83,8.12]
[1756561096062,3.18706124,198.92,198.83,8.12]
[1756561096259,3.57362361,198.91,198.83,8.12]
[1756561096462,3.18706124,198.92,198.83,8.12]
[1756561096862,3.57349763,198.91,198.83,8.12]
[1756561097067,3.57349763,198.9,198.83,8.12]
[1756561097361,3.18706124,198.92,198.83,8.12]
[1756561097566,3.57268559,198.91,198.83,8.12]
[1756561097766,3.18706124,198.92,198.83,8.12]
[1756561097966,3.57285443,198.91,198.83,8.12]
[1756561098166,3.18706124,198.92,198.83,8.12]
[1756561098366,3.5722737,198.91,198.83,8.12]
[1756561098664,3.18706124,198.92,198.83,8.12]
[1756561098866,3.5722737,198.91,198.83,8.12]
[1756561099060,3.18706124,198.92,198.83,8.12]
[1756561099256,3.5717805,198.91,198.83,8.12]
[1756561099466,3.18706124,198.92,198.83,8.12]
[1756561099765,3.5553514,198.91,198.83,8.12]
[1756561099968,3.18706124,198.92,198.83,8.12]
[1756561100862,3.58706124,198.93,198.83,8.12]
[1756561101071,3.55505545,198.92,198.83,8.12]
[1756561101268,3.58706124,198.93,198.83,8.12]
[1756561101462,3.55454665,198.92,198.83,8.12]
[1756561101662,3.58706124,198.93,198.83,8.12]
[1756561101861,3.55498989,198.92,198.83,8.12]
[1756561102161,3.58706124,198.93,198.83,8.12]
[1756561102467,3.55480458,198.92,198.83,8.12]
[1756561102662,3.58706124,198.93,198.83,8.12]
[1756561102869,3.55481433,198.92,198.83,8.12]
[1756561103066,3.58706124,198.93,198.83,8.12]
[1756561103460,0.03678232,198.89,198.85,8.12]
[1756561103768,0.03678232,198.89,198.87,8.12]
[1756561104869,0.03678232,198.89,198.86,0.0381333]
[1756561105064,0.03678232,198.89,198.87,8.12]
[1756561106167,0.03678232,198.89,198.86,3.22519454]
[1756561106365,0.03678232,198.89,198.87,8.12]
[1756561107162,0.03678232,198.89,198.86,3.22519454]
[1756561107866,0.03678232,198.89,198.87,8.12]
[1756561108471,0.03678232,198.89,198.86,3.22519454]
[1756561108673,0.03678232,198.89,198.87,8.12]
[1756561108874,0.38,198.96,198.87,8.12]
[1756561109872,1.29496543,199.01,198.89,3.18706124]
[1756561110072,0.42,199.01,198.9,8.12]
[1756561110670,0.42,199.01,198.94,0.03363084]
[1756561111080,0.42,198.98,198.94,0.03363084]
[1756561111272,3.18706124,198.96,198.87,8.12]
[1756561111468,0.42,198.91,198.87,8.12]
[1756561112378,3.18706124,198.96,198.85,8.12]
[1756561112576,3.18706124,198.96,198.88,8.12]
[1756561114983,3.18706124,198.93,198.84,8.12]
[1756561115276,0.42,198.92,198.84,8.12]
[1756561115478,3.18706124,198.93,198.84,8.12]
[1756561115675,0.42,198.92,198.84,8.12]
[1756561115875,0.42,198.88,198.79,8.12]
[1756561119078,3.18706124,198.89,198.79,8.12]
[1756561122382,0.42,198.88,198.79,8.12]
[1756561136189,3.60706124,198.88,198.79,8.12]
[1756561139293,3.18706124,198.88,198.79,8.12]
[1756561144194,5.57394486,198.97,198.81,7.54]
[1756561144397,3.18706124,198.94,198.84,7.54]
[1756561144596,3.60706124,198.91,198.84,7.54]
[1756561145195,53.7,198.96,198.78,7.54]
[1756561145196,0.42,198.87,198.78,7.54]
[1756561145797,3.18706124,198.85,198.78,7.54]
[1756561146802,3.18706124,198.88,198.78,7.54]
[1756561147912,3.60706124,198.9,198.8,3.18706124]
[1756561148098,3.60706124,198.9,198.81,8.09]
[1756561153309,0.43,198.89,198.81,8.09]
[1756561153807,3.61706124,198.9,198.81,8.09]
[1756561155612,3.18706124,198.9,198.82,8.09]
[1756561155809,0.43,198.94,198.82,8.09]
[1756561156113,3.18706124,198.93,198.82,8.09]
[1756561157515,0.43,198.89,198.82,8.09]
[1756561158718,0.43,198.83,198.77,8.09]
[1756561159717,3.18706124,198.81,198.74,8.09]
[1756561159907,0.43,198.83,198.74,8.09]
[1756561160116,3.18706124,198.82,198.74,8.09]
[1756561161712,0.42,198.78,198.7,13.73973472]
[1756561161914,0.42,198.78,198.7,8.09]
[1756561165223,3.18706124,198.83,198.72,3.18706124]
[1756561165418,3.60706124,198.83,198.73,8.09]
[1756561165614,3.18706124,198.83,198.73,8.09]
[1756561165821,3.18706124,198.8,198.73,8.09]
[1756561169321,3.60706124,198.8,198.73,8.09]
[1756561170023,0.42,198.8,198.73,8.09]
[1756561170325,3.18706124,198.79,198.73,8.09]
[1756561178227,3.60706124,198.8,198.73,8.09]
[1756561180833,0.42,198.8,198.73,8.09]
[1756561181031,3.18706124,198.79,198.73,8.09]
[1756561181434,3.60706124,198.8,198.73,8.09]
[1756561183336,3.18706124,198.8,198.73,8.09]
[1756561188641,3.18706124,198.83,198.73,8.09]
[1756561191446,0.43,198.82,198.73,8.09]
[1756561193542,3.18706124,198.81,198.73,8.09]
[1756561198044,3.18706124,198.81,198.74,7.73]
[1756561199045,3.18706124,198.84,198.74,7.73]
[1756561200149,3.18706124,198.84,198.75,7.73]
[1756561202147,3.18706124,198.84,198.76,7.73]
[1756561202949,3.18706124,198.84,198.76,11.95543667]
[1756561203246,3.18706124,198.87,198.79,7.73]
[1756561203440,3.18706124,198.87,198.79,11.95543667]
[1756561203638,0.43,198.88,198.81,7.73]
[1756561204148,3.18706124,198.91,198.82,7.73]
[1756561205946,3.18706124,198.94,198.82,11.95543667]
[1756561206150,3.18706124,198.94,198.84,7.41249791]
[1756561206444,3.18706124,198.94,198.85,7.73]
[1756561207350,0.43,198.95,198.85,7.73]
[1756561207749,3.18706124,198.96,198.86,7.38]
[1756561208148,3.18706124,198.96,198.88,7.38]
[1756561209648,124.96,199.0,198.88,7.38]
[1756561209649,3.18706124,198.93,198.88,7.38]
[1756561209954,0.42,198.92,198.88,7.38]
[1756561210250,0.42,198.92,198.84,7.38]
[1756561211551,3.60706124,198.92,198.84,7.38]
[1756561216053,3.18706124,198.9,198.84,7.38]
[1756561217046,5.57394486,199.03,198.84,7.38]
[1756561217351,3.18706124,198.93,198.84,7.38]
[1756561225558,3.18706124,198.96,198.84,7.38]
[1756561227459,0.42,198.95,198.84,7.38]
[1756561228956,3.60706124,198.95,198.84,7.38]
[1756561237369,3.60706124,198.95,198.85,7.73]
[1756561237965,3.60706124,198.95,198.87,7.73]
[1756561240472,0.41,198.98,198.9,7.73]
[1756561242373,3.59706124,199.0,198.9,7.73]
[1756561244178,3.59706124,199.0,198.91,7.73]
[1756561247276,0.41,199.0,198.91,11.95543667]
[1756561247478,3.59706124,199.0,198.92,7.73]
[1756561248476,0.41,198.99,198.92,7.73]
[1756561248680,0.41,198.96,198.92,7.73]
[1756561248880,3.18706124,198.97,198.92,7.73]
[1756561249380,0.41,198.96,198.92,7.73]
[1756561249677,3.18706124,198.97,198.9,7.73]
[1756561251180,3.18706124,198.97,198.9,4.22543667]
[1756561251478,3.18706124,198.97,198.91,7.73]
[1756561252376,3.59706124,198.97,198.91,7.73]
[1756561261485,0.41,199.04,198.91,7.73]
[1756561261682,0.41,199.01,198.91,4.22543667]
[1756561261886,0.41,199.01,198.92,11.95543667]
[1756561262093,0.41,199.01,198.93,7.73]
[1756561262891,3.59706124,199.04,198.93,11.95543667]
[1756561263192,3.59706124,199.04,198.94,7.73]